fUSD/lending_fUSD_20250524
["ID","MTS","AMOUNT","RATE_DAILY","PERIOD"]
[362189488,1748076644826,-152.95,0.000345,31]
[362189489,1748076644835,-152.95,0.000345,31]
[362189490,1748076644845,-152.95,0.000345,31]
[362189491,1748076644855,-152.95,0.000345,31]
[362189492,1748076644865,-150.0,0.00034508,2]
[362189493,1748076644875,-150.0,0.00034518,2]
[362189494,1748076644885,-894.19061326,0.00034519,2]
[362189495,1748076644895,-150.0,0.00034524,2]
[362189496,1748076644904,-150.0,0.0003454,2]
[362189497,1748076644914,-150.0,0.0003455,2]
[362189498,1748076644925,-150.0,0.00034553,2]
[362189499,1748076644935,-150.0,0.00034559,2]
[362189500,1748076644944,-1000.0,0.00034576,2]
[362189501,1748076644956,-150.0,0.00034598,2]
[362189502,1748076644967,-151.33064016,0.00034606,2]
[362189503,1748076644977,-150.0,0.00034611,7]
[362189504,1748076644986,-150.0,0.00034615,2]
[362189505,1748076644998,-150.0,0.00034637,2]
[362189506,1748076645174,-500.0,0.00034638,7]
[362189507,1748076645183,-150.0,0.00034639,2]
[362189508,1748076645194,-150.0,0.0003464,2]
[362189509,1748076645206,-150.0,0.00034651,2]
[362189510,1748076645216,-150.0,0.00034687,2]
[362189511,1748076645225,-150.0,0.00034698,2]
[362189512,1748076645237,-150.0,0.00034703,2]
[362189513,1748076645246,-200.0,0.00034715,10]
[362189514,1748076645257,-1000.0,0.00034715,2]
[362189515,1748076645269,-150.0,0.00034731,2]
[362189516,1748076645278,-379.79104232,0.00034743,2]
[362189517,1748076645288,-150.0,0.0003475,2]
[362189518,1748076645297,-150.0,0.00034764,2]
[362189519,1748076645306,-150.0,0.00034767,2]
[362189520,1748076645316,-150.0,0.00034777,2]
[362189521,1748076645326,-1000.0,0.00034779,2]
[362189522,1748076645336,-150.0,0.0003478,2]
[362189523,1748076645345,-150.0,0.00034787,2]
[362189524,1748076645354,-511.0,0.00034795,30]
[362189525,1748076645364,-30000.0,0.000348,2]
[362189526,1748076645373,-4000.0,0.000348,12]
[362189527,1748076645383,-2000.0,0.000348,12]
[362189528,1748076645393,-152.95,0.000348,31]
[362189529,1748076645403,-152.95,0.000348,31]
[362189530,1748076645413,-152.95,0.000348,31]
[362189531,1748076645424,-152.95,0.000348,31]
[362189532,1748076645435,-152.95,0.000348,31]
[362189533,1748076645445,-152.95,0.000348,31]
[362189534,1748076645455,-152.95,0.000348,31]
[362189535,1748076645465,-152.95,0.000348,31]
[362189536,1748076645475,-152.95,0.000348,31]
[362189537,1748076645485,-1000.0,0.00034805,2]
[362189538,1748076645495,-150.0,0.00034812,2]
[362189539,1748076645506,-150.0,0.00034815,2]
[362189540,1748076645516,-151.0,0.0003482,7]
[362189541,1748076645528,-157.485681,0.0003482,7]
[362189542,1748076645538,-2000.0,0.00034825,3]
[362189543,1748076645548,-150.0,0.00034849,2]
[362189544,1748076645558,-150.0,0.00034854,2]
[362189545,1748076645567,-150.0,0.00034855,2]
[362189546,1748076645577,-152.0,0.00034856,3]
[362189547,1748076645588,-150.0,0.0003486,120]
[362189548,1748076645598,-246.77756173,0.0003486,2]
[362189549,1748076645608,-150.0,0.00034863,2]
[362189550,1748076645618,-150.0,0.0003487,2]
[362189551,1748076645628,-150.0,0.00034871,2]
[362189552,1748076645637,-150.0,0.00034878,2]
[362189553,1748076645647,-10000.0,0.0003488,120]
[362189554,1748076645657,-150.0,0.00034887,2]
[362189555,1748076645668,-150.0,0.00034887,2]
[362189556,1748076645679,-1000.0,0.00034896,30]
[362189557,1748076645688,-150.0,0.000349,2]
[362189558,1748076645697,-800.0,0.000349,12]
[362189559,1748076645707,-5936.43369374,0.000349,2]
[362189560,1748076645716,-1086.58506424,0.000349,2]
[362189561,1748076645725,-406.96162686,0.000349,2]
[362189562,1748076645735,-5667.16493728,0.000349,2]
[362189563,1748076645744,-150.0,0.000349,2]
[362189564,1748076645754,-400.0,0.000349,12]
[362189565,1748076645763,-150.0,0.00034901,2]
[362189566,1748076645773,-150.0,0.00034905,2]
[362189567,1748076645782,-150.0,0.00034912,2]
[362189568,1748076645792,-150.0,0.0003492,2]
[362189569,1748076645802,-150.0,0.0003492,2]
[362189570,1748076645811,-150.0,0.00034921,2]
[362189571,1748076645821,-150.0,0.00034927,2]
[362189572,1748076645830,-500.0,0.00034927,7]
[362189573,1748076645840,-150.0,0.00034931,2]
[362189574,1748076645849,-806.0,0.00034932,2]
[362189575,1748076645863,-806.0,0.00034932,2]
[362189576,1748076645872,-806.0,0.00034932,2]
[362189577,1748076645882,-806.0,0.00034932,2]
[362189578,1748076645893,-150.0,0.00034933,2]
[362189579,1748076645902,-150.0,0.00034943,2]
[362189580,1748076645912,-150.0,0.00034943,2]
[362189581,1748076645923,-150.0,0.00034946,2]
[362189582,1748076645933,-215.06167088,0.00034969,31]
[362189583,1748076645942,-400.0,0.0003497,2]
[362189584,1748076645954,-300.0,0.0003497,2]
[362189585,1748076645967,-300.0,0.0003497,2]
[362189586,1748076645976,-400.0,0.0003497,2]
[362189587,1748076645986,-400.0,0.0003497,2]
[362189588,1748076645996,-500.0,0.0003497,2]
[362189589,1748076646006,-153.31,0.00034983,2]
[362189590,1748076646016,-150.0,0.00034987,2]
[362189591,1748076646026,-153.31,0.0003499,2]
[362189592,1748076646035,-185.8177377,0.0003499,2]
[362189593,1748076646045,-153.31,0.0003499,2]
[362189594,1748076646055,-153.31,0.0003499,2]
[362189595,1748076646064,-153.31,0.0003499,2]
[362189597,1748076646074,-153.31,0.0003499,2]
[362189598,1748076646083,-153.31,0.0003499,2]
[362189599,1748076646092,-153.31,0.0003499,2]
[362189600,1748076646102,-185.8177377,0.0003499,2]
[362189601,1748076646112,-150.0,0.00034992,2]
[362189602,1748076646121,-173.9719647,0.00034993,2]
[362189604,1748076646131,-226.5545024,0.00034993,2]
[362189605,1748076646140,-279.13704,0.00034993,2]
[362189606,1748076646150,-331.7195777,0.00034993,2]
[362189607,1748076646160,-384.3021154,0.00034993,2]
[362189608,1748076646170,-436.884653,0.00034993,2]
[362189609,1748076646180,-572.2748569,0.00034993,2]
[362189610,1748076646190,-745.2433249,0.00034993,2]
[362189611,1748076646200,-918.2117929,0.00034993,2]
[362189612,1748076646209,-1091.1802609,0.00034993,2]
[362189613,1748076646219,-1264.1487289,0.00034993,2]
[362189614,1748076646228,-1437.1171969,0.00034993,2]
[362189615,1748076646238,-10757.5769994,0.00034993,2]
[362189616,1748076646247,-14009.0244296,0.00034993,2]
[362189617,1748076646256,-17260.4718598,0.00034993,2]
[362189618,1748076646266,-20511.91929,0.00034993,2]
[362189619,1748076646276,-23763.3667201,0.00034993,2]
[362189620,1748076646285,-27014.8141503,0.00034993,2]
[362189621,1748076646295,-728.60439316,0.00034993,2]
[362189622,1748076646304,-27186.5207826,0.00034993,2]
[362189623,1748076646313,-28116.7412939,0.00034993,2]
[362189624,1748076646322,-29046.9618053,0.00034993,2]
[362189625,1748076646332,-29977.1823167,0.00034993,2]
[362189626,1748076646341,-30907.402828,0.00034993,2]
[362189627,1748076646351,-31837.6233394,0.00034993,2]
[362189628,1748076646360,-5618.3220101,0.00034993,2]
[362189629,1748076646371,-5810.5598627,0.00034993,2]
[362189630,1748076646380,-6002.7977152,0.00034993,2]
[362189631,1748076646390,-6195.0355677,0.00034993,2]
[362189632,1748076646399,-6387.2734203,0.00034993,2]
[362189633,1748076646409,-6579.5112728,0.00034993,2]
[362189634,1748076646418,-150.0,0.00034995,2]
[362189635,1748076646427,-152.62803,0.00034999,7]
[362189636,1748076646437,-151.0,0.00034999,7]
[362189637,1748076646446,-151.0,0.00034999,7]
[362189638,1748076646455,-151.333094,0.00034999,7]
[362189639,1748076646464,-151.0,0.00034999,7]
[362189640,1748076646474,-151.0,0.00034999,7]
[362189641,1748076646483,-151.0,0.00034999,7]
[362189642,1748076646493,-151.0,0.00034999,7]
[362189643,1748076646502,-153.977614,0.00034999,7]
[362189644,1748076646511,-151.0,0.00034999,7]
[362189645,1748076646520,-165.94765,0.00034999,7]
[362189646,1748076646530,-151.0,0.00034999,7]
[362189647,1748076646539,-151.0,0.00034999,7]
[362189648,1748076646549,-151.0,0.00034999,7]
[362189649,1748076646559,-189.947256,0.00034999,7]
[362189650,1748076646569,-792.40637,0.00034999,7]
[362189651,1748076646578,-792.40637,0.00034999,7]
[362189652,1748076646588,-151.822772,0.00034999,7]
[362189653,1748076646598,-152.890715,0.00034999,7]
[362189654,1748076646608,-152.813479,0.00034999,7]
[362189655,1748076646617,-500.0,0.00034999,120]
[362189656,1748076646627,-151.0,0.00034999,7]
[362189657,1748076646636,-151.0,0.00034999,7]
[362189659,1748076646645,-151.0,0.00034999,7]
[362189661,1748076646655,-151.0,0.00034999,7]
[362189663,1748076646663,-153.257141,0.00034999,7]
[362189664,1748076646673,-151.0,0.00034999,7]
[362189666,1748076646682,-1013.093093,0.00034999,7]
[362189669,1748076646691,-151.0,0.00034999,7]
[362189670,1748076646702,-151.0,0.00034999,7]
[362189672,1748076646711,-151.89328,0.00034999,7]
[362189674,1748076646721,-151.0,0.00034999,7]
[362189676,1748076646730,-151.0,0.00034999,7]
[362189678,1748076646739,-151.0,0.00034999,7]
[362189680,1748076646749,-151.0,0.00034999,7]
[362189682,1748076646758,-151.0,0.00034999,7]
[362189684,1748076646768,-152.429017,0.00034999,7]
[362189686,1748076646777,-154.07059,0.00034999,7]
[362189688,1748076646787,-157.994311,0.00034999,7]
[362189690,1748076646796,-157.994311,0.00034999,7]
[362189692,1748076646806,-151.0,0.00034999,7]
[362189694,1748076646815,-258.554075,0.00034999,7]
[362189696,1748076646825,-258.554075,0.00034999,7]
[362189698,1748076646834,-151.0,0.00034999,7]
[362189700,1748076646843,-226.843999,0.00034999,7]
[362189702,1748076646852,-151.0,0.00034999,7]
[362189704,1748076646861,-151.0,0.00034999,7]
[362189706,1748076646870,-155.008626,0.00034999,7]
[362189708,1748076646880,-226.843999,0.00034999,7]
[362189710,1748076646889,-152.52018,0.00034999,7]
[362189712,1748076646899,-153.30508,0.00034999,7]
[362189714,1748076646908,-151.671082,0.00034999,7]
[362189716,1748076646918,-151.0,0.00034999,7]
[362189718,1748076646928,-177.293075,0.00034999,7]
[362189720,1748076646937,-291.295357,0.00034999,7]
[362189722,1748076646946,-151.0,0.00034999,7]
[362189724,1748076646957,-429.70203,0.00034999,7]
[362189725,1748076646968,-429.70203,0.00034999,7]
[362189726,1748076646978,-151.0,0.00034999,7]
[362189727,1748076646987,-151.0,0.00034999,7]
[362189728,1748076646997,-151.0,0.00034999,7]
[362189729,1748076647007,-728.1247385,0.00035,4]
[362189730,1748076647017,-1190901.84882326,0.00035,4]
[362189731,1748076647027,-1381119.94998917,0.00035,60]
[362189732,1748076647065,-1981.9999998,0.00035,60]
[362189733,1748076647076,-1703.22292634,0.00035,60]
[362189734,1748076647087,-234941.805,0.00035,60]
[362189735,1748076647987,-151.0,0.00020199,2]
[362189736,1748076647999,-1445.04802604,0.00028418,2]
[362189737,1748076648011,-207.0,0.00030948,2]
[362189738,1748076648020,-77501.00413604,0.00035,60]
[362189739,1748076648360,-273350.36398876,0.00035,60]
[362189740,1748076648397,-1395.02696505,0.00035,60]
[362189741,1748076648424,-21330.0288039,0.00035,60]
[362189742,1748076648863,-260.43533064,0.000349,2]
[362189743,1748076648879,-1216.82389539,0.00031,120]
[362189744,1748076648888,-1001.6461711,0.000349,2]
[362189745,1748076648900,-2192.33410396,0.000349,2]
[362189746,1748076648910,-1099.33186544,0.00035,60]
[362189747,1748076649098,-6330.07415296,0.00035,60]
[362189748,1748076649164,-383.79180157,0.00035,60]
[362189749,1748076649176,-718.80250076,0.00035,60]
[362189750,1748076649187,-1231.437585,0.00035,60]
[362189751,1748076649236,-6148.81459057,0.00035,60]
[362189752,1748076649248,-1800.97756779,0.00035,60]
[362189753,1748076649259,-2460.839191,0.00035,60]
[362189755,1748076734837,154.33,0.00013699,2]
[362189756,1748076852815,250.0,0.00015,2]
[362189757,1748076853890,300.0,0.00017,2]
[362189762,1748077290495,1254.96,0.00026244,120]
[362189763,1748077328302,14971.699242,7.945e-05,2]
[362189764,1748077616110,-226.01406158,0.0001887,2]
[362189765,1748077670505,150.0,1e-08,2]
[362189772,1748077831415,-196.93447536,0.0001887,2]
[362189773,1748077831426,-200.0,0.00018885,2]
[362189774,1748077831436,-859.59868521,0.000189,2]
[362189775,1748077831445,-248.44643001,0.000189,2]
[362189776,1748077831455,-887.67921926,0.00018925,2]
[362189777,1748077831495,-355.03450112,0.00018925,2]
[362189778,1748077831504,-250.0,0.00018925,2]
[362189779,1748077831514,-200.0,0.00018925,2]
[362189780,1748077831523,-200.0,0.00018969,2]
[362189781,1748077831532,-300.0,0.00018998,2]
[362189782,1748077831542,-949.36326723,0.00018998,2]
[362189783,1748077831592,-250.63673277,0.00018998,2]
[362189784,1748077831602,-300.0,0.00018998,2]
[362189785,1748077831611,-300.0,0.00018999,2]
[362189786,1748077831621,-350.0,0.00019,2]
[362189787,1748077831631,-500.0,0.00019,2]
[362189788,1748077831641,-321.58797424,0.00019,2]
[362189789,1748077831650,-248.44643001,0.00019,2]
[362189790,1748077831659,-248.44643001,0.00019143,2]
[362189791,1748077831669,-151.0,0.00019178,2]
[362189792,1748077831678,-151.0,0.00019339,2]
[362189793,1748077831687,-151.0,0.00019344,2]
[362189794,1748077831697,-151.0,0.00019353,2]
[362189795,1748077831707,-151.0,0.0001936,2]
[362189796,1748077831717,-156.587,0.00019726,2]
[362189797,1748077831727,-250.0,0.00019784,2]
[362189798,1748077831736,-3231.330374,0.00019899,2]
[362189799,1748077831745,-250.0,0.0002,2]
[362189800,1748077831754,-162.380719,0.00020274,2]
[362189801,1748077831763,-420.0,0.00020708,2]
[362189802,1748077831963,-420.0,0.00020709,2]
[362189803,1748077831975,-250.0,0.00020757,2]
[362189805,1748077831984,-200.0,0.00020757,2]
[362189807,1748077831994,-250.0,0.0002079,2]
[362189809,1748077832003,-200.0,0.0002079,2]
[362189811,1748077832012,-957.0,0.00020806,2]
[362189813,1748077832022,-1680.0,0.00020808,2]
[362189815,1748077832031,-680.0,0.0002081,2]
[362189817,1748077832040,-168.3888056,0.00020822,2]
[362189819,1748077832050,-400.0,0.00021,2]
[362189821,1748077832059,-541.74178623,0.000211,2]
[362189823,1748077832068,-174.61919141,0.0002137,2]
[362189826,1748077832077,-510.63,0.00021381,2]
[362189828,1748077832087,-422.94853693,0.00021424,2]
[362189830,1748077832096,-1000.0,0.00021435,2]
[362189831,1748077832105,-517.04,0.00021662,2]
[362189832,1748077832115,-44.59636365,0.00021706,2]
[362189833,1748077832127,-1258.03994208,0.00021706,2]
[362189834,1748077832212,-1218.17490806,0.00021706,2]
[362189835,1748077832238,-1377.70272503,0.00021706,2]
[362189837,1748077832250,-1885.935,0.00021706,2]
[362190144,1748077837496,-825.12106118,0.00021706,2]
[362190145,1748077837506,-433.77820981,0.00021706,2]
[362190146,1748077837710,-66.22179019,0.00021706,2]
[362190147,1748077837720,-205.37480363,0.000218,6]
[362190148,1748077837730,-205.37480357,0.000218,6]
[362190149,1748077837739,-205.37480357,0.000218,6]
[362190150,1748077837749,-619.88010145,0.00021887,2]
[362190151,1748077837759,-227.42788351,0.00021918,2]
[362190152,1748077837769,-263.88862953,0.00021944,2]
[362190153,1748077837779,-500.0,0.00021944,2]
[362190154,1748077837788,-500.0,0.00021944,2]
[362190155,1748077837797,-500.0,0.00021944,2]
[362190156,1748077837807,-500.0,0.00021944,2]
[362190157,1748077837816,-413.69958689,0.00021944,2]
[362190158,1748077837826,-376.25537114,0.00021944,2]
[362190159,1748077837867,-123.74462886,0.00021944,2]
[362190160,1748077837879,-500.0,0.00021944,2]
[362190161,1748077837889,-360.0228212,0.00021944,2]
[362190162,1748077837916,-139.9771788,0.00021944,2]
[362190163,1748077837926,-433.42273873,0.00021944,2]
[362190164,1748077837936,-500.0,0.00021944,2]
[362190165,1748077837946,-305.22722476,0.00021944,2]
[362190166,1748077837958,-45.23714022,0.00021944,2]
[362190167,1748077837968,-395.6480487,0.00021944,2]
[362190168,1748077837978,-300.0,0.00021944,2]
[362190169,1748077837987,-403.74528069,0.00021946,2]
[362190170,1748077837998,-1366.525,0.00021946,2]
[362190171,1748077838009,-2093.21959934,0.00021946,2]
[362190172,1748077838036,-2102.72423198,0.00021946,2]
[362190174,1748077838047,-1235.0,0.00021946,2]
[362190196,1748077838200,-2212.14033473,0.00021946,2]
[362190200,1748077838211,-4850.43578301,0.00021946,2]
[362190203,1748077838222,-4806.02902283,0.00021946,2]
[362190206,1748077838234,-1781.65127197,0.00021946,2]
[362190333,1748077839521,-3048.52947545,0.00021946,2]
[362190334,1748077839530,-1000.0,0.00022,18]
[362190335,1748077839539,-318.3234731,0.00022067,2]
[362190336,1748077839548,-500.0,0.00022067,2]
[362190337,1748077839558,-505.03314306,0.00022067,2]
[362190338,1748077839567,-187.92,0.00022112,2]
[362190339,1748077839577,-1852.42,0.00022123,2]
[362190340,1748077839586,-329.19010142,0.0002236,2]
[362190341,1748077839596,-500.0,0.00022423,2]
[362190342,1748077839605,-500.71047097,0.00022423,2]
[362190343,1748077839614,-587.0,0.00022572,2]
[362190344,1748077839624,-393.25432976,0.00022615,2]
[362190345,1748077839633,-205.37480357,0.0002266,7]
[362190346,1748077839642,-344.04,0.00022665,2]
[362190347,1748077839651,-344.04,0.00022671,2]
[362190348,1748077839661,-344.04,0.00022677,2]
[362190349,1748077839670,-344.04,0.00022682,2]
[362190350,1748077839680,-344.04,0.00022688,2]
[362190351,1748077839689,-344.04,0.00022694,2]
[362190352,1748077839698,-344.04,0.000227,2]
[362190353,1748077839707,-344.04,0.00022706,2]
[362190354,1748077839716,-344.04,0.00022712,2]
[362190355,1748077839725,-344.04,0.00022718,2]
[362190356,1748077839911,-344.04,0.00022724,2]
[362190357,1748077839934,-344.04,0.0002273,2]
[362190358,1748077839943,-344.04,0.00022736,2]
[362190359,1748077839953,-344.04,0.00022742,2]
[362190360,1748077839963,-344.04,0.00022748,2]
[362190361,1748077839972,-344.04,0.00022754,2]
[362190362,1748077839981,-344.04,0.0002276,2]
[362190363,1748077839991,-344.04,0.00022766,2]
[362190364,1748077840007,-344.04,0.00022772,2]
[362190365,1748077840018,-344.04,0.00022778,2]
[362190366,1748077840028,-2351.0,0.00022791,2]
[362190367,1748077840039,-187.92,0.00022941,2]
[362190368,1748077840048,-44.9709951,0.00022971,2]
[362190372,1748077840103,-955.0290049,0.00022971,2]
[362190373,1748077840114,-450.0,0.00023,2]
[362190374,1748077840127,-1158.9709951,0.00023215,2]
[362190375,1748077840138,-432.48,0.00023215,2]
[362190376,1748077840150,-367.03000001,0.00023215,2]
[362190377,1748077840162,-2052.84946263,0.00023215,2]
[362190381,1748077840233,-737.81954226,0.00023215,2]
[362190382,1748077840243,-169.44,0.00023225,2]
[362190383,1748077840254,-499.71738354,0.00023519,2]
[362190384,1748077840263,-205.37480357,0.0002358,9]
[362190385,1748077840273,-314.79,0.00023732,2]
[362190386,1748077840283,-187.92,0.0002377,2]
[362190387,1748077840292,-183.36,0.00023836,2]
[362190388,1748077840301,-113.40875328,0.00023847,2]
[362190389,1748077840673,-306.59124672,0.00023847,2]
[362190390,1748077840682,-12131.73,0.00023951,2]
[362190391,1748077840693,-422.94853693,0.00023977,2]
[362190392,1748077840704,-500.0,0.00024,2]
[362190393,1748077840713,-184.7,0.00024077,2]
[362190394,1748077840723,-1000.0,0.00024114,2]
[362190395,1748077840732,-2462.93,0.00024176,2]
[362190396,1748077840741,-250.0,0.00024239,2]
[362190397,1748077840751,-482.0791932,0.00024239,2]
[362190398,1748077840760,-500.0,0.00024239,2]
[362190399,1748077840769,-500.0,0.00024239,2]
[362190400,1748077840779,-500.0,0.00024239,2]
[362190401,1748077840790,-500.0,0.00024239,2]
[362190402,1748077840801,-500.0,0.00024239,2]
[362190403,1748077840811,-500.0,0.00024239,2]
[362190404,1748077840822,-181.4034185,0.00024299,2]
[362190405,1748077840832,-291.8177994,0.00024299,2]
[362190406,1748077840844,-151.36012955,0.00024299,2]
[362190407,1748077840854,-67024.0,0.000243,2]
[362190408,1748077840864,-161.42,0.00024359,2]
[362190409,1748077840874,-205.37480357,0.000245,11]
[362190410,1748077840884,-461.94,0.0002451,2]
[362190411,1748077840893,-187.92,0.00024599,2]
[362190412,1748077840902,-823.0,0.00024603,2]
[362190413,1748077840911,-1000.0,0.00024787,2]
[362190414,1748077840920,-500.0,0.00024787,2]
[362190415,1748077840929,-500.0,0.00024787,2]
[362190416,1748077840939,-154.33,0.00024907,2]
[362190417,1748077840948,-3292.0,0.00024963,2]
[362190418,1748077840959,-500.0,0.00025,2]
[362190419,1748077840967,-5561.0,0.00025,3]
[362190420,1748077840976,-504.44490417,0.00025335,2]
[362190421,1748077840986,-205.37480357,0.0002542,13]
[362190422,1748077840996,-187.92,0.00025428,2]
[362190423,1748077841005,-1047.68,0.00025432,2]
[362190424,1748077841015,-5561.0,0.000256,5]
[362190425,1748077841024,-23213.97768184,0.00025996,2]
[362190426,1748077841033,-12329.19,0.00026006,2]
[362190427,1748077841043,-150.0,0.00026159,7]
[362190428,1748077841052,-200.0,0.00026219,2]
[362190429,1748077841061,-205.37480357,0.0002634,14]
[362190430,1748077841070,-1500.0,0.00026594,2]
[362190431,1748077841080,-500.0,0.00026773,2]
[362190432,1748077841089,-500.74484075,0.00026773,2]
[362190433,1748077841099,-155.12227778,0.00026781,7]
[362190434,1748077841108,-870.92369807,0.00026781,7]
[362190435,1748077841118,-1000.0,0.00026794,2]
[362190436,1748077841130,-1152.0,0.00026817,2]
[362190437,1748077841139,-500.0,0.00026892,2]
[362190438,1748077841150,-550.0,0.00027,2]
[362190439,1748077841159,-500.0,0.00027008,2]
[362190440,1748077841168,-2773.39,0.0002701,2]
[362190441,1748077841178,-167.05,0.0002703,2]
[362190442,1748077841188,-565.21457565,0.00027046,2]
[362190443,1748077841214,-736.91542435,0.00027046,2]
[362190444,1748077841224,-4845.99905935,0.00027048,2]
[362190445,1748077841235,-309.71956924,0.00027048,2]
[362190446,1748077841247,-758.79780336,0.00027048,2]
[362190447,1748077841258,-543.56286855,0.00027048,2]
[362190448,1748077841305,-798.52623198,0.00027048,2]
[362190449,1748077841316,-263.9574886,0.00027048,2]
[362190450,1748077841327,-1713.73933695,0.00027048,2]
[362190451,1748077841336,-159.4117376,0.00027073,2]
[362190452,1748077841345,-205.37480357,0.0002726,16]
[362190453,1748077841358,-989.49831959,0.00027321,2]
[362190454,1748077841367,-798.92599684,0.00027342,2]
[362190455,1748077841398,-511.08466066,0.00027342,2]
[362190456,1748077841409,-1824.9893425,0.00027342,2]
[362190457,1748077841418,-420.0,0.00027397,2]
[362190458,1748077841428,-500.0,0.00027397,2]
[362190459,1748077841439,-500.0,0.00027397,2]
[362190460,1748077841448,-500.0,0.00027397,2]
[362190461,1748077841457,-500.0,0.00027397,2]
[362190462,1748077841466,-500.0,0.00027397,2]
[362190463,1748077841475,-234.88093884,0.00027397,2]
[362190464,1748077841484,-1905.86,0.00027397,2]
[362190465,1748077841493,-151.11,0.00027397,2]
[362190466,1748077841502,-159.3861888,0.00027397,5]
[362190467,1748077841511,-503.16973193,0.0002744,5]
[362190468,1748077841521,-300.0,0.00027482,2]
[362190469,1748077841531,-420.0,0.00027534,2]
[362190470,1748077841540,-1000.0,0.00027556,5]
[362190471,1748077841549,-420.0,0.00027671,2]
[362190472,1748077841558,-1047.68,0.00027696,2]
[362190473,1748077841568,-420.0,0.00027808,2]
[362190474,1748077841577,-420.0,0.00027945,2]
[362190475,1748077841586,-1000.0,0.00027999,2]
[362190476,1748077841595,-1000.0,0.00028,20]
[362190477,1748077841605,-2751.0,0.00028081,2]
[362190478,1748077841614,-420.0,0.00028082,2]
[362190479,1748077841625,-1500.0,0.00028104,5]
[362190480,1748077841635,-9234.30235795,0.00028132,2]
[362190481,1748077841644,-205.37480357,0.0002818,18]
[362190482,1748077841653,-500.0,0.00028208,2]
[362190483,1748077841662,-420.0,0.00028219,2]
[362190484,1748077841671,-585.55226982,0.00028328,2]
[362190485,1748077841681,-28281.02,0.00028329,2]
[362190486,1748077841691,-420.0,0.00028356,2]
[362190487,1748077841878,-153.04768091,0.00028433,5]
[362190488,1748077841887,-502.28145813,0.00028433,5]
[362190489,1748077841897,-420.0,0.00028493,2]
[362190490,1748077841907,-286.49471126,0.0002863,2]
[362190491,1748077841917,-1500.0,0.00028652,5]
[362190492,1748077841926,-1905.86,0.00028767,2]
[362190493,1748077841936,-4000.0,0.00028898,2]
[362190494,1748077841946,-151.11,0.00028919,2]
[362190495,1748077841957,-600.0,0.00029,2]
[362190496,1748077841967,-151.67,0.00029,2]
[362190497,1748077841976,-205.37480357,0.000291,20]
[362190498,1748077841986,-2766.13,0.0002913,2]
[362190499,1748077841996,-9234.30235795,0.00029215,2]
[362190500,1748077842006,-573.0,0.00029231,2]
[362190501,1748077842015,-966.0,0.00029351,120]
[362190502,1748077842025,-150.0,0.000294,2]
[362190503,1748077842034,-1000.0,0.00029473,2]
[362190504,1748077842044,-294.83698261,0.000298,2]
[362190505,1748077842054,-10060.70583592,0.000298,2]
[362190506,1748077842065,-2301.30812085,0.00029887,2]
[362190507,1748077842075,-9614.5396817,0.000299,2]
[362190508,1748077842085,-9614.53968161,0.000299,2]
[362190509,1748077842094,-9614.53968161,0.000299,2]
[362190510,1748077842105,-9614.53968161,0.000299,2]
[362190511,1748077842115,-9614.53968161,0.000299,2]
[362190512,1748077842127,-9614.53968161,0.000299,2]
[362190513,1748077842136,-9614.53968161,0.000299,2]
[362190514,1748077842146,-9614.53968161,0.000299,2]
[362190515,1748077842155,-9614.53968161,0.000299,2]